Cogmind - Beta 13 @@@ ROGUE MODE // 2024.04.26 @ 21:52:57 Player: YBOUZL Result: Destroyed by G-47 Trooper with Particle Gun Performance ------------- Evolutions (2) 1000 Regions Visited (4) 800 Robots Destroyed (68) 340 Value Destroyed (2159) 2159 Prototype IDs (4) 80 Alien Tech Used (0) 0 Bonus (15) 15 TOTAL SCORE: 4394 Bonus ------- High Alert Combat Kills 15 Cogmind --------- Core Integrity 0/550 Matter 300/300 Energy 290/290 System Corruption 1% Temperature Cool (45) Movement Walking (120) Location -8/Materials Parts ------- > --- POWER (1) -------- Improved Deuterium Engine > --- PROPULSION (4) --- Carbon-fiber Leg Carbon-fiber Leg > --- UTILITY (4) ------ Small Storage Unit Improved Terrain Scan Processor Hacking Suite > --- WEAPON (2) ------- Pulse Rifle Improved Grenade Launcher > --- INVENTORY (8) ---- Light Nuclear Core Light Nuclear Core Aluminum Leg Heavy EM Shotgun Field Laser High-powered Shotgun Peak State ------------ > --- POWER ------------ Light Nuclear Core > --- PROPULSION ------- Carbon-fiber Leg Carbon-fiber Leg Carbon-fiber Leg Carbon-fiber Leg > --- UTILITY ---------- Improved Heat Sink Small Storage Unit Improved Terrain Scan Processor Hacking Suite > --- WEAPON ----------- Heavy EM Shotgun Heavy EM Shotgun > --- INVENTORY -------- Light Ion Engine Light Nuclear Core Heavy EM Shotgun Field Laser Pulse Rifle High-powered Shotgun Improved Grenade Launcher [Rating: 35] Favorites ----------- Power Light Nuclear Core Engine Light Ion Engine Power Core Light Nuclear Core Propulsion Aluminum Leg Treads Light Treads Leg Aluminum Leg Utility Hacking Suite Device Heat Sink Storage Small Storage Unit Processor Improved Terrain Scan Processor Hackware Hacking Suite Protection Medium Armor Plating Weapon Beam Rifle Energy Gun Beam Rifle Energy Cannon Heavy Particle Cannon Ballistic Gun Heavy Assault Rifle Ballistic Cannon Light Cannon Launcher Improved Grenade Launcher Special Weapon Plasma Cutter Build | -11 -10 -9 -9 -8 ------- Run | Yrd Mat Mat Sto Mat Slots Evolved 4 | . . 2 . 2 Power . | . . . . . Propulsion 2 | . . 2 . . Utility 2 | . . . . 2 Weapon . | . . . . . Parts Attached 79 | 5 1 8 17 48 Power 11 | 1 . 2 1 7 Engine 7 | 1 . 1 1 4 Core 4 | . . 1 . 3 Reactor . | . . . . . Propulsion 28 | 2 . 3 10 13 Treads 2 | . . . . 2 Leg 26 | 2 . 3 10 11 Wheel . | . . . . . Hover . | . . . . . Flight . | . . . . . Utility 9 | . 1 1 . 7 Device 3 | . . . . 3 Storage 2 | . . 1 . 1 Processor 2 | . . . . 2 Hackware 1 | . 1 . . . Protection 1 | . . . . 1 Artifact . | . . . . . Weapon 31 | 2 . 2 6 21 Energy Gun 13 | 1 . 2 3 7 Energy Cannon 3 | . . . . 3 Ballistic Gun 7 | 1 . . 2 4 Ballistic Cannon 1 | . . . . 1 Launcher 5 | . . . . 5 Special Weapon 2 | . . . 1 1 Impact Weapon . | . . . . . Slashing Weapon . | . . . . . Piercing Weapon . | . . . . . Special Melee Weapon . | . . . . . Unidentified Prototypes 2 | . . . . 2 Parts Lost 31 | . . . 8 23 Power 5 | . . . 1 4 Propulsion 13 | . . . 6 7 Utility 6 | . . . . 6 Weapon 7 | . . . 1 6 Highest Loss Streak 10 | . . . 4 10 To Critical Strikes . | . . . . . Average Slot Usage (%) 87 | . 82 82 94 82 Engine 4 | . 14 10 1 3 Core 5 | . . . 8 5 Leg 30 | . 28 28 39 22 Device 3 | . . . . 7 Storage 9 | . . 10 11 8 Processor 3 | . . . . 7 Hackware 10 | . 11 11 11 9 Energy Gun 14 | . 14 17 19 9 Ballistic Gun 3 | . 14 4 2 2 Naked Turns . | . . . . . Heaviest Build 30 | 7 7 18 16 30 Greatest Support 60 | 20 20 40 43 60 Greatest Overweight (x) 6 | 1 . . . 6 Average Overweight (x) . | . . . . . Largest Inventory Capacity 8 | 5 5 8 8 8 Average Capacity 7 | 5 5 7 8 7 Most Carried 8 | 5 4 8 8 8 Average Carried 5 | 3 3 4 6 4 Final Capacity 8 | 5 5 8 8 8 Final Carried 6 | 3 3 5 5 6 Class Distribution -------------------- 62% | Scavenger-Mutant 37% | Mutant Dominant Class ---------------- Mutant | -10/Materials Mutant | -9/Materials Scavenger-Mutant | -9/Storage Mutant | -8/Materials Resources | -11 -10 -9 -9 -8 ----------- Run | Yrd Mat Mat Sto Mat Matter Collected 1300 | 146 12 220 245 677 Remotely . | . . . . . Salvage Created 2610 | . 12 439 884 1275 Parts 135 | . 5 28 44 58 Haulers Intercepted . | . . . . . Recyclers Shooed 2 | . . . . 2 Parts Field Recycled . | . . . . . Retrieved Matter . | . . . . . Parts Self-Destructed . | . . . . . Prevented . | . . . . . Kills | -11 -10 -9 -9 -8 ------- Run | Yrd Mat Mat Sto Mat Combat Hostiles Destroyed 54 | . . 11 20 23 Guns 43 | . . 11 19 13 Cannons 6 | . . . . 6 AOE 2 | . . . . 2 Classes Destroyed 10 | . 1 5 2 2 Worker 5 | . . . 1 4 Builder 2 | . . 1 . 1 Recycler 2 | . . . . 2 Operator 1 | . 1 . . . Watcher 4 | . . 2 . 2 Swarmer 9 | . . 3 3 3 Grunt 27 | . . 6 8 13 Brawler 1 | . . . 1 . Sentry 15 | . . 2 8 5 Specialist 2 | . . . . 2 Best Kill Streak 9 | . 1 6 3 9 Combat Bots Only 6 | . . 4 3 6 Max Kills in Single Turn 3 | . 1 2 1 3 Gunslinging . | . . . . . Exploded 1 | . . . . 1 Melee . | . . . . . Uniques/NPCs Destroyed . | . . . . . Combat | -11 -10 -9 -9 -8 -------- Run | Yrd Mat Mat Sto Mat Hostile Shots Fired 389 | . . 61 109 219 Missed 105 | . . 14 37 54 Damage Taken 4110 | . . 530 982 2598 Core 827 | . . 110 165 552 Absorbed by Shields . | . . . . . Core Remaining (%) 77 | 100 100 . 31 . Volleys Fired 225 | . 2 36 88 99 Largest 2 | . 2 2 2 2 Hottest 138 | . 70 121 121 138 Shots Fired 398 | . 4 71 165 158 Gun 337 | . 4 71 163 99 Cannon 48 | . . . . 48 Launcher 6 | . . . . 6 Special 7 | . . . 2 5 Kinetic 108 | . 2 13 34 59 Thermal 265 | . 2 58 131 74 Explosive 6 | . . . . 6 Electromagnetic 19 | . . . . 19 Robot Hit Streak 22 | . 2 6 22 18 Robot Miss Streak 6 | . 2 6 4 3 Penetration Max . | . . . . . Secondary Targets 3 | . . 1 1 1 Max Gunslinging Chain 1 | . . 1 1 1 Shots Hit Robots 263 | . 2 36 114 111 Core Hits 129 | . 2 20 36 71 Critical Kills . | . . . . . Critical Parts Destroyed . | . . . . . Critical Strikes 20 | . . 6 11 3 Burn 19 | . . 6 11 2 Blast 1 | . . . . 1 Melee Attacks . | . . . . . Impact . | . . . . . Slashing . | . . . . . Piercing . | . . . . . Sneak Attacks . | . . . . . Combat Hostiles . | . . . . . Follow-up Attacks . | . . . . . Damage Inflicted 5112 | . 25 584 1786 2717 Guns 3611 | . 23 575 1778 1235 Cannons 712 | . . . . 712 Explosions 697 | . . . . 697 Melee . | . . . . . Ramming 47 | . 2 9 8 28 Kinetic 1097 | . 10 36 407 644 Thermal 3040 | . 13 539 1371 1117 Explosive 534 | . . . . 534 Electromagnetic 355 | . . . . 355 Impact 39 | . . . . 39 Slashing . | . . . . . Piercing . | . . . . . Highest Corruption 1 | . . . 1 1 Average Corruption 1 | . . . 1 1 Corruption Purged . | . . . . . Corruption Blocked . | . . . . . Effects 9 | . . . 4 5 Message Errors 1 | . . . . 1 Matter Fused 3 | . . . 1 2 Parts Rejected 1 | . . . 1 . Data Loss (minor) 1 | . . . 1 . Data Loss (major) 1 | . . . 1 . Misfires 1 | . . . . 1 Alerts 1 | . . . . 1 Overload Shots . | . . . . . Overflow Damage 9 | . . . . 9 Projectiles . | . . . . . Explosions 9 | . . . . 9 Melee . | . . . . . Knockbacks 10 | . . . . 10 Impact 1 | . . . . 1 Kinetic 7 | . . . . 7 Secondary 2 | . . . . 2 Self-Inflicted Damage 113 | . . . . 113 Shots 3 | . . . . 3 Rammed . | . . . . . Targets Rammed 12 | . 1 1 4 6 Kicked 12 | . 1 1 4 6 Crushed . | . . . . . Highest Temperature 424 | . 18 424 291 233 Average Temperature 94 | . 10 133 100 43 Received Heat Transfer 1791 | . . 195 426 1170 Effects 8 | . . 3 5 . Shutdowns 1 | . . 1 . . Energy Bleed 2 | . . 1 1 . Interference 4 | . . . 4 . Short Circuit 1 | . . 1 . . Siege Activations . | . . . . . Robots Corrupted 1 | . . . . 1 Combat Hostiles 1 | . . . . 1 Parts Fried 1 | . . . . 1 Impact Corruptions 1 | . . . . 1 Robots Melted 2 | . . . 1 1 Combat Hostiles 2 | . . . 1 1 Parts Melted 16 | . . 3 13 . Heat Transferred 8388 | . 37 1776 4255 2320 Parts Sabotaged . | . . . . . Parts Stolen . | . . . . . Parts Stripped . | . . . . . Power Chain Reactions 2 | . . . . 2 Alert | -11 -10 -9 -9 -8 ------- Run | Yrd Mat Mat Sto Mat Peak Influence 426 | . 11 334 327 426 Initial 141 | . . 4 141 137 Average 158 | . 7 141 131 210 Maximum Alert Level 2 | . . 1 1 2 Low Security (%) 66 | 100 100 60 78 51 Level 1 32 | . . 40 21 45 Level 2 1 | . . . . 2 Level 3 . | . . . . . Level 4 . | . . . . . Level 5 . | . . . . . High Security . | . . . . . Max Security . | . . . . . Squads Dispatched 11 | . . 3 4 4 Investigation 3 | . . 1 2 . Extermination . | . . . . . Reinforcement 6 | . . 2 1 3 Assault . | . . . . . Garrison 2 | . . . 1 1 Intercept . | . . . . . Searches Triggered . | . . . . . Construction Impeded 2 | . . . . 2 Haulers Reinforced . | . . . . . Active Scanning Responses . | . . . . . Cargo Convoy Interrupts . | . . . . . Stealth | -11 -10 -9 -9 -8 --------- Run | Yrd Mat Mat Sto Mat Distress Signals 5 | . . . 2 3 Communications Jammed . | . . . . . Distress Signals . | . . . . . Times Spotted 94 | . 1 14 31 48 Peak Tracking Total 7 | . 1 6 7 6 Tactical Retreats 5 | . . . 1 4 Traps | -11 -10 -9 -9 -8 ------- Run | Yrd Mat Mat Sto Mat Traps Triggered 6 | . . 1 2 3 Indirectly . | . . . . . Trap Hack Attempts . | . . . . . Triggered . | . . . . . Disarmed . | . . . . . Reprogrammed . | . . . . . Reused . | . . . . . Traps Extracted . | . . . . . Installed . | . . . . . Triggered . | . . . . . Machines | -11 -10 -9 -9 -8 ---------- Run | Yrd Mat Mat Sto Mat Machines Disabled . | . . . . . Max in Single Turn . | . . . . . Garrison Access 1 | . . . . 1 Machines Repaired . | . . . . . Machines Dismantled 1 | . . . 1 . Machines Sabotaged . | . . . . . Overloaded Fab Kills . | . . . . . Hacking | -11 -10 -9 -9 -8 --------- Run | Yrd Mat Mat Sto Mat Machines Accessed 16 | . 2 1 7 6 Terminals 13 | . 2 1 6 4 Fabricators . | . . . . . Repair Stations . | . . . . . Recycling Units 1 | . . . 1 . Scanalyzers 1 | . . . . 1 Garrison Access 1 | . . . . 1 Total Hacks 42 | . 6 2 18 16 Successful 26 | . 3 . 12 11 Failed 16 | . 3 2 6 5 Catastrophic 3 | . 1 1 1 . Database Lockouts . | . . . . . Manual . | . . . . . Terminals 34 | . 6 2 15 11 Fabricators . | . . . . . Repair Stations . | . . . . . Recycling Units 3 | . . . 3 . Scanalyzers 3 | . . . . 3 Garrison Access 2 | . . . . 2 Terminal Hacks 22 | . 3 . 11 8 Record 4 | . . . 3 1 Robot Analysis 1 | . . . . 1 Prototype ID Bank 1 | . . . . 1 Open Door 2 | . . . 2 . Alert Level 4 | . . . 3 1 Unreport Threat 1 | . . . 1 . Dispatch Records 2 | . . . 1 1 Security Status 1 | . 1 . . . Investigation Status 1 | . 1 . . . Reinforcement Status 2 | . 1 . . 1 Hauler Manifests 1 | . . . . 1 Registered Components 1 | . . . . 1 Zone Layout 1 | . . . 1 . Fabricator Hacks . | . . . . . Repair Station Hacks . | . . . . . Recycling Unit Hacks 1 | . . . 1 . Report Inventory 1 | . . . 1 . Scanalyzer 2 | . . . . 2 Insert Component 1 | . . . . 1 Analyze 1 | . . . . 1 Garrison Access Hacks 1 | . . . . 1 Seal Access 1 | . . . . 1 Unauthorized Hacks . | . . . . . Terminals . | . . . . . Fabricators . | . . . . . Repair Stations . | . . . . . Recycling Units . | . . . . . Scanalyzers . | . . . . . Garrison Access . | . . . . . Data Cores Recovered 1 | . 1 . . . Used 1 | . 1 . . . Hacking Detections 13 | . 2 1 5 5 Full Trace Events 5 | . 1 . 4 . Feedback Events 1 | . . . 1 . Corruption 1 | . . . 1 . Feedback Blocked . | . . . . . Robot Schematics Acquired . | . . . . . Robots Built . | . . . . . Authchips . | . . . . . Time . | . . . . . Total Robot Build Rating . | . . . . . Part Schematics Acquired 1 | . . . . 1 Parts Built . | . . . . . Authchips . | . . . . . Time . | . . . . . Total Part Build Rating . | . . . . . Parts Repaired . | . . . . . Time . | . . . . . Parts Recycled . | . . . . . Recycled Matter . | . . . . . Retrieved Matter . | . . . . . Retrieved Components . | . . . . . Parts Scanalyzed 1 | . . . . 1 Part Schematics Acquired 1 | . . . . 1 Parts Damaged . | . . . . . Bothacking | -11 -10 -9 -9 -8 ------------ Run | Yrd Mat Mat Sto Mat Used RIF Installer . | . . . . . Robots Hacked . | . . . . . Non-combat . | . . . . . Combat . | . . . . . Robot Hacks Applied . | . . . . . Relay Couplers Released . | . . . . . Fabnet Peak Effective % . | . . . . . Robots Rewired . | . . . . . Allies Hacked . | . . . . . Hacks Repelled . | . . . . . Allies | -11 -10 -9 -9 -8 -------- Run | Yrd Mat Mat Sto Mat Total Allies . | . . . . . Largest Group . | . . . . . Highest-Rated Group . | . . . . . Highest-Rated Ally . | . . . . . Total Orders . | . . . . . Ally Attacks . | . . . . . Total Damage . | . . . . . Kills . | . . . . . Allies Corrupted . | . . . . . Allies Melted . | . . . . . Intel | -11 -10 -9 -9 -8 ------- Run | Yrd Mat Mat Sto Mat Robot Analysis Total 1 | . . . . 1 Derelict Logs Recovered . | . . . . . Drone Launches 2 | . . . . 2 Drone Recoveries . | . . . . . Exploration | -11 -10 -9 -9 -8 ------------- Run | Yrd Mat Mat Sto Mat Turns Passed 2853 | 59 104 350 1141 1199 Spaces Moved 1494 | 52 80 183 614 565 Core 46 | 23 . . . 23 Treads 7 | . . . . 7 Legs 1441 | 29 80 183 614 535 Wheels . | . . . . . Hover . | . . . . . Flight . | . . . . . Fastest Speed 50 | 50 120 120 120 120 Average Speed 125 | 91 120 120 120 136 Slowest Speed 350 | 120 120 120 120 350 Overloaded Moves . | . . . . . Propulsion Burnouts . | . . . . . Robots Hopped . | . . . . . Cave-ins Triggered . | . . . . . Exploration Rate (%) 33 | 4 19 20 76 48 Regions Visited 4 Branch Regions 1 Pre-discovered Areas . | . . . . . Known Exits Taken . | . . . . . Unknown Exits Taken 4 | 1 1 1 1 . Scrap Searched . | . . . . . Spaces Dug . | . . . . . Terrain Destroyed 57 | . . . . 57 Melee . | . . . . . Projectile 2 | . . . . 2 AOE 55 | . . . . 55 Terrain Rammed . | . . . . . Walls Destroyed . | . . . . . Machines Disabled . | . . . . . Actions | -11 -10 -9 -9 -8 --------- Run | Yrd Mat Mat Sto Mat Total 2063 | 62 84 241 840 836 Wait 150 | . . 3 91 56 Move 1490 | 51 79 182 613 565 Hop . | . . . . . Pick Up 70 | 6 1 8 14 41 Fast Attach 5 | 2 . . . 3 Attach 55 | 3 1 3 10 38 Detach 3 | . . . 1 2 Swap 19 | . . 5 7 7 Drop 25 | . . 3 5 17 Fire 225 | . 2 36 88 99 Melee . | . . . . . Ram . | . . . . . Kick 12 | . 1 1 4 6 Crush . | . . . . . Escape Stasis 2 | . . . 2 . Rewire 2 | . . . . 2 Trap . | . . . . . Miscellaneous 5 | . . . 5 . Route ------- -11/Scrapyard -10/Materials -9/Materials -9/Storage -8/Materials History --------- Turn | Location | Event 5 | -11/Scrapyard | Discovered new exit (range 16) 60 | -11/Scrapyard | Entered Materials 126 | -10/Materials | Discovered new exit (range 16) 164 | -10/Materials | Entered another Materials area 164 | -9/Materials | Evolved 2 slots: Propulsion x2 313 | -9/Materials | Build established: Mutant 479 | -9/Materials | Discovered new exit (range 16) 514 | -9/Materials | Entered Storage 746 | -9/Storage | Build established: Scavenger-Mutant 1353 | -9/Storage | Core integrity fell below 50% 1389 | -9/Storage | Lost 4 parts (1p2n1w) 1544 | -9/Storage | Garrison activated, responded to threat 1632 | -9/Storage | Discovered new exit (range 16) 1655 | -9/Storage | Entered Materials 1655 | -8/Materials | Evolved 2 slots: Utility x2 2179 | -8/Materials | Core integrity fell below 50% 2226 | -8/Materials | Lost 10 parts (2p3n2u3w) 2415 | -8/Materials | Core integrity fell below 20% 2585 | -8/Materials | Garrison activated, responded to threat 2852 | -8/Materials | Build established: Mutant 2852 | -8/Materials | Lost 5 parts (2n1u2w) 2854 | -8/Materials | Destroyed by G-47 Trooper with Particle Gun Last Messages --------------- M-13 Machinist destroyed. ALERT: Construction progress impeded, dispatching reinforcements to local area. R-06 Scavenger collects Unknown Wheel. U-05 Engineer destroyed. X-62 Marksman destroyed. R-06 Scavenger destroyed. Carbon-fiber Leg destroyed. Destroyed Carbon-fiber Leg. The unstable cave ceiling collapses. Unknown Wheel crushed. The unstable cave ceiling collapses. Acquired Imp. Deuterium Engine. Dropped Lgt. Ion Engine. Acquired Aluminum Leg. Acquired 55 matter. Acquired 24 matter. The unstable cave ceiling collapses. Backup Propulsion I crushed. Acquired 13 matter. Map ----- +----------------------------------------------------+ | ????????????????????????????????????????????????? | | ????????????????????????????????????????????????? | | ???????????????[????????????????????????????????? | | ????????????????????????????????????????????????? | | ????????????????????????????????????????????????? | | ????????????????????????????????????????????????? | | ????????????????????????????????????????????????? | | ????????????????????????????????????????????????? | | ????????????????????????????????????????????????? | | ????????????????????????????????????????????????? | | ??????????????H?????????????????????????????????? | | ????????????????????????????????????????????????? | | ????????????????????????????????????????????????? | | ????????????????????????????????????????????????? | | ??????????????????????????????????????#?????????? | | ????????????????????????????????????? #?????????? | | ???????????????????????????????????? #?????????? | | ???????????????????????????????????? #?????????? | | ???????????###########?######?????? #?????????? | | ???????????# ###;;; ####### ##????????? | | ???????????# "" =;= # ########?? | | ???????????# "" "" %;= [% ? | | ??????????## "" = [*% g ? | | ??????????# "T = !* mg g """""?????? | | ??????????## "" = ; = % ## """""??????? | | ???????????#["" = #![@* ###### """ ??????? | | ???????????#!%!! ! !##[!# # ?????? | | ??????????############[#*! # ! #? ????? | | ??????????# ! ######% # [[ +?? ???? | | ??????????# """ # =[*=###?[[ # ??? | | ??????????# R" # #+#####??? # ???? | | ??????????# """ # # #??? # #?T"#T#???? | | ??????????# # # """ #????#### #?""#?????? | | ??????????######+## # """ #???????# #?????????? | | ?????######### + """ #???????# #?????????? | | ?????# # # #???????# #?????????? | | ?????# # # #???????# #?????????? | | ?????# + # #???????# #?????????? | | ?????####+#### ############### #?????????? | | ????????# #?????????? | | ????????######+#######+#+#####?# #?????????? | | ???????????# /# #?????# #?????????? | | ???????????# # "" #?????# #?????????? | | ???????????#""" #! G" #?????# ########### | | ##########?#""" # "" ####### + | | # #?#""" #! =+ ! ######## | | # """ T #?# = # / [###########+#####???# | | # """ #?###############??????# #???# | | # """ #??????????????????????# """ ##??# | | # #?###############??????# """ #??# | +----------------------------------------------------+ Best States ------------- Heat Dissipation 45 Energy Generation 18 Energy Capacity 290 Matter Stores 300 Matter Capacity 300 Sight Range 16 Terrain Scan Density 110 Armor Coverage 225 Evasion (%) 55 Targeting Accuracy 6 Recoil Reduction 1 Offensive Hacking 10 Item Schematics ----------------- Hvy. Particle Cannon | -8/Materials | Scanalyzed Robot Schematics ------------------ None Fabricated ------------ Nothing Alien Tech Used ----------------- None Achievements -------------- None Challenges ------------ None Game ------ Seed TransdimensionalNuclearLegs Manual? 0 Play Time 00:36:42 Cumulative 7.8 hours Start 2024.04.26 @ 16:15:11 End 2024.04.26 @ 21:52:57 Sessions 3 Manual Loads 0 Difficulty Rogue Special Mode None Game No. 22 Rogue 22 Adventurer 0 Explorer 0 Win Type - Total 0 Types 0/0/0/0/0/0/0/0/0 Lore% 14 Gallery% 16 Achievement% 12 Wizard Run 0 Options --------- Layout 1 ASCII 0 Keyboard 0 Movement Mouse Keybinds 0 Fullscreen 1 Font 24/Smallcaps Map View 50x35 Zoom Use 0% Tactical HUD 0 Map Filters NONE Filters NONE Steam 1 RUN: bdd3d733-25b9-4bb1-935f-992dc6cb2e71